[Event "*** Titled Tuesday Blitz"]
[Site "Chess.com"]
[Date "2020.10.20"]
[Round "5"]
[White "VladimirBugayev"]
[Black "MIJuanReyesRosa"]
[Result "0-1"]
[WhiteElo "2317"]
[BlackElo "2104"]
[TimeControl "180+1"]
[EndTime "10:56:55 PDT"]
[Termination "MIJuanReyesRosa won on time"]

1. e4 {[%clk 0:03:00.9]} 1... c5 {[%clk 0:02:59.1]} 2. Nc3 {[%clk 0:03:00.3]}
2... a6 {[%clk 0:02:58.3]} 3. g3 {[%clk 0:02:59.8]} 3... b5 {[%clk 0:02:57.3]}
4. Bg2 {[%clk 0:03:00]} 4... Bb7 {[%clk 0:02:57.4]} 5. Nge2 {[%clk 0:02:40.3]}
5... e6 {[%clk 0:02:56.6]} 6. O-O {[%clk 0:02:20.9]} 6... d6 {[%clk 0:02:50.6]}
7. d4 {[%clk 0:02:15.6]} 7... cxd4 {[%clk 0:02:49.6]} 8. Nxd4 {[%clk 0:02:14.2]}
8... Qc7 {[%clk 0:02:44.1]} 9. Be3 {[%clk 0:02:12.8]} 9... Nf6 {[%clk
0:02:41.5]} 10. Qd3 {[%clk 0:01:45.1]} 10... Be7 {[%clk 0:02:39.6]} 11. f4
{[%clk 0:01:39.3]} 11... Nbd7 {[%clk 0:02:36.7]} 12. f5 {[%clk 0:00:58.2]} 12...
Nc5 {[%clk 0:02:19.2]} 13. Qe2 {[%clk 0:00:49.6]} 13... e5 {[%clk 0:02:05.6]}
14. Nb3 {[%clk 0:00:41.5]} 14... Ncxe4 {[%clk 0:01:58]} 15. Nxe4 {[%clk
0:00:35.1]} 15... Nxe4 {[%clk 0:01:49.7]} 16. Qg4 {[%clk 0:00:13.3]} 16... h5
{[%clk 0:01:03.9]} 17. Qe2 {[%clk 0:00:06.2]} 17... Nf6 {[%clk 0:00:52.4]} 18.
Rad1 {[%clk 0:00:05]} 18... Ng4 {[%clk 0:00:39.6]} 19. h3 {[%clk 0:00:02.6]}
19... Nxe3 {[%clk 0:00:37.3]} 20. Qxe3 {[%clk 0:00:03.4]} 20... Bxg2 {[%clk
0:00:32.6]} 21. Kxg2 {[%clk 0:00:04.3]} 21... Qxc2+ {[%clk 0:00:30.6]} 22. Rd2
{[%clk 0:00:04.8]} 22... Qc6+ {[%clk 0:00:28.5]} 23. Kg1 {[%clk 0:00:03.6]}
23... h4 {[%clk 0:00:23.6]} 24. Rc1 {[%clk 0:00:03.5]} 24... Qd7 {[%clk
0:00:14.9]} 25. g4 {[%clk 0:00:03.2]} 25... O-O {[%clk 0:00:10.9]} 26. Nc5
{[%clk 0:00:03.3]} 26... Qa7 {[%clk 0:00:08.6]} 0-1

[Event "*** Titled Tuesday Blitz"]
[Site "Chess.com"]
[Date "2020.10.20"]
[Round "5"]
[White "VitaliyBernadskiy"]
[Black "Chernobay_Artem"]
[Result "0-1"]
[WhiteElo "2774"]
[BlackElo "2590"]
[TimeControl "180+1"]
[EndTime "10:56:57 PDT"]
[Termination "Chernobay_Artem won by resignation"]

1. e4 {[%clk 0:01:16.9]} 1... c5 {[%clk 0:02:56.2]} 2. Nc3 {[%clk 0:01:15]} 2...
Nc6 {[%clk 0:02:54.4]} 3. Nf3 {[%clk 0:01:14.6]} 3... g6 {[%clk 0:02:34.4]} 4.
d4 {[%clk 0:01:13.4]} 4... cxd4 {[%clk 0:02:32.9]} 5. Nxd4 {[%clk 0:01:14.3]}
5... Bg7 {[%clk 0:02:33.3]} 6. Be3 {[%clk 0:01:14.9]} 6... Nf6 {[%clk
0:02:32.9]} 7. Bc4 {[%clk 0:01:15.5]} 7... O-O {[%clk 0:02:29.6]} 8. Bb3 {[%clk
0:01:15.4]} 8... d6 {[%clk 0:02:11.2]} 9. h3 {[%clk 0:01:14.6]} 9... a6 {[%clk
0:02:07.9]} 10. O-O {[%clk 0:01:14.2]} 10... Nxd4 {[%clk 0:02:03.9]} 11. Bxd4
{[%clk 0:01:15.1]} 11... b5 {[%clk 0:02:04.5]} 12. a4 {[%clk 0:01:09.5]} 12...
Bb7 {[%clk 0:01:48.6]} 13. Nd5 {[%clk 0:00:56.3]} 13... Nxe4 {[%clk 0:01:39]}
14. Bxg7 {[%clk 0:00:56.2]} 14... Kxg7 {[%clk 0:01:39.2]} 15. axb5 {[%clk
0:00:53.1]} 15... axb5 {[%clk 0:01:36.2]} 16. Rxa8 {[%clk 0:00:52.8]} 16... Bxa8
{[%clk 0:01:32.8]} 17. Qd4+ {[%clk 0:00:49.1]} 17... Nf6 {[%clk 0:01:30.1]} 18.
Nxf6 {[%clk 0:00:49.2]} 18... exf6 {[%clk 0:01:31]} 19. Rd1 {[%clk 0:00:39.1]}
19... Re8 {[%clk 0:01:31.1]} 20. f3 {[%clk 0:00:31.9]} 20... Re5 {[%clk
0:01:13.7]} 21. Kf2 {[%clk 0:00:29.3]} 21... d5 {[%clk 0:01:11]} 22. Qc5 {[%clk
0:00:21]} 22... Qe8 {[%clk 0:00:54.5]} 23. Rd2 {[%clk 0:00:19]} 23... Bc6 {[%clk
0:00:42.6]} 24. Qd4 {[%clk 0:00:12.8]} 24... h5 {[%clk 0:00:42.2]} 25. h4 {[%clk
0:00:11.9]} 25... Qe7 {[%clk 0:00:40.6]} 26. c3 {[%clk 0:00:11.3]} 26... Re1
{[%clk 0:00:36.6]} 27. Bd1 {[%clk 0:00:10.3]} 27... Rh1 {[%clk 0:00:35.5]} 28.
Be2 {[%clk 0:00:09.2]} 28... Qe5 {[%clk 0:00:31.5]} 29. Qc5 {[%clk 0:00:07.3]}
29... Qh2 {[%clk 0:00:27.2]} 30. Rd1 {[%clk 0:00:05.1]} 30... Qxh4+ {[%clk
0:00:25.3]} 31. Ke3 {[%clk 0:00:04.9]} 31... Rxd1 {[%clk 0:00:22.7]} 32. Bxd1
{[%clk 0:00:05.8]} 32... Qe1+ {[%clk 0:00:22.9]} 33. Be2 {[%clk 0:00:05.7]}
33... Qg1+ {[%clk 0:00:23.4]} 0-1

[Event "*** Titled Tuesday Blitz"]
[Site "Chess.com"]
[Date "2020.10.20"]
[Round "5"]
[White "ChainsOfFantasia"]
[Black "W_Amadeus"]
[Result "0-1"]
[WhiteElo "2483"]
[BlackElo "2729"]
[TimeControl "180+1"]
[EndTime "10:56:58 PDT"]
[Termination "W_Amadeus won by resignation"]

1. d4 {[%clk 0:01:01.9]} 1... Nf6 {[%clk 0:02:58.4]} 2. c4 {[%clk 0:01:00.9]}
2... e6 {[%clk 0:02:58.5]} 3. Nf3 {[%clk 0:01:00.2]} 3... d5 {[%clk 0:02:58]} 4.
Nc3 {[%clk 0:00:59.9]} 4... dxc4 {[%clk 0:02:58]} 5. e4 {[%clk 0:00:57.4]} 5...
Bb4 {[%clk 0:02:57.9]} 6. Bxc4 {[%clk 0:00:57.3]} 6... Nxe4 {[%clk 0:02:57.7]}
7. O-O {[%clk 0:00:57.5]} 7... Nf6 {[%clk 0:02:54.5]} 8. Bg5 {[%clk 0:00:49.7]}
8... O-O {[%clk 0:02:53.4]} 9. a3 {[%clk 0:00:31.6]} 9... Be7 {[%clk 0:02:53.1]}
10. Re1 {[%clk 0:00:24.8]} 10... b6 {[%clk 0:02:51.1]} 11. Ne5 {[%clk
0:00:24.6]} 11... Bb7 {[%clk 0:02:49.3]} 12. Qd3 {[%clk 0:00:23.6]} 12... Nc6
{[%clk 0:02:47]} 13. Rad1 {[%clk 0:00:22.1]} 13... Na5 {[%clk 0:01:52.5]} 14.
Ba2 {[%clk 0:00:18.6]} 14... c5 {[%clk 0:01:50]} 15. Qe3 {[%clk 0:00:14.4]}
15... c4 {[%clk 0:01:32.2]} 16. Qg3 {[%clk 0:00:09.4]} 16... Nd5 {[%clk
0:01:14.1]} 17. Bxe7 {[%clk 0:00:08]} 17... Qxe7 {[%clk 0:01:12]} 18. Nxd5
{[%clk 0:00:07.3]} 18... Bxd5 {[%clk 0:01:12.9]} 19. Bb1 {[%clk 0:00:06.4]}
19... Rac8 {[%clk 0:01:08.2]} 20. Re3 {[%clk 0:00:05.5]} 20... Nc6 {[%clk
0:00:58]} 21. Qf4 {[%clk 0:00:04.2]} 21... Rfd8 {[%clk 0:00:46.3]} 22. Rh3
{[%clk 0:00:03.8]} 22... f5 {[%clk 0:00:43.5]} 23. Re1 {[%clk 0:00:02.4]} 23...
Nxe5 {[%clk 0:00:38.8]} 24. dxe5 {[%clk 0:00:03.3]} 24... h6 {[%clk 0:00:31]}
25. g4 {[%clk 0:00:03.2]} 25... fxg4 {[%clk 0:00:22.5]} 26. Qxg4 {[%clk
0:00:04.1]} 26... Qg5 {[%clk 0:00:22.7]} 27. Qxg5 {[%clk 0:00:04.1]} 27... hxg5
{[%clk 0:00:23.6]} 28. Rg3 {[%clk 0:00:04.9]} 28... Rf8 {[%clk 0:00:17.9]} 29.
Rxg5 {[%clk 0:00:05.2]} 29... c3 {[%clk 0:00:18.5]} 30. bxc3 {[%clk 0:00:04.7]}
30... Rxc3 {[%clk 0:00:19.4]} 31. Re3 {[%clk 0:00:04.7]} 31... Rc1+ {[%clk
0:00:18.7]} 0-1

[Event "*** Titled Tuesday Blitz"]
[Site "Chess.com"]
[Date "2020.10.20"]
[Round "5"]
[White "AliKa2810"]
[Black "platy3"]
[Result "0-1"]
[WhiteElo "2601"]
[BlackElo "2820"]
[TimeControl "180+1"]
[EndTime "10:57:00 PDT"]
[Termination "platy3 won by resignation"]

1. d4 {[%clk 0:02:44.6]} 1... Nf6 {[%clk 0:02:58.1]} 2. c4 {[%clk 0:02:43.8]}
2... e6 {[%clk 0:02:58.7]} 3. Nf3 {[%clk 0:02:42.8]} 3... d5 {[%clk 0:02:58.5]}
4. Nc3 {[%clk 0:02:42.1]} 4... Nbd7 {[%clk 0:02:58.5]} 5. Bf4 {[%clk 0:02:41.3]}
5... dxc4 {[%clk 0:02:56.8]} 6. e3 {[%clk 0:02:41.9]} 6... Bd6 {[%clk 0:02:56]}
7. Bxd6 {[%clk 0:02:38.5]} 7... cxd6 {[%clk 0:02:56.9]} 8. Bxc4 {[%clk
0:02:39.1]} 8... O-O {[%clk 0:02:56.1]} 9. O-O {[%clk 0:02:39.3]} 9... a6 {[%clk
0:02:56.6]} 10. Rc1 {[%clk 0:02:37.7]} 10... b5 {[%clk 0:02:56.6]} 11. Bd3
{[%clk 0:02:34.7]} 11... Bb7 {[%clk 0:02:57.5]} 12. Qe2 {[%clk 0:02:32.1]} 12...
Rc8 {[%clk 0:02:54.9]} 13. a3 {[%clk 0:02:31.6]} 13... e5 {[%clk 0:02:49.8]} 14.
dxe5 {[%clk 0:02:26.2]} 14... dxe5 {[%clk 0:02:49.4]} 15. Ng5 {[%clk 0:02:20.7]}
15... Nc5 {[%clk 0:02:42.9]} 16. Bf5 {[%clk 0:02:19.7]} 16... Rc7 {[%clk
0:02:38]} 17. b4 {[%clk 0:02:12.8]} 17... Ncd7 {[%clk 0:02:18]} 18. Rfd1 {[%clk
0:01:59.5]} 18... Qe7 {[%clk 0:02:09.5]} 19. Nce4 {[%clk 0:01:36.1]} 19... Rxc1
{[%clk 0:02:03.5]} 20. Rxc1 {[%clk 0:01:36.4]} 20... h6 {[%clk 0:02:04.2]} 21.
Rc7 {[%clk 0:01:28]} 21... Ba8 {[%clk 0:01:47.8]} 22. Nc5 {[%clk 0:01:06.2]}
22... hxg5 {[%clk 0:01:24.9]} 23. Bxd7 {[%clk 0:01:05.2]} 23... Qd6 {[%clk
0:01:22.2]} 24. Ra7 {[%clk 0:01:04.7]} 24... Rd8 {[%clk 0:01:15]} 25. Rxa6
{[%clk 0:01:01.2]} 25... Qd5 {[%clk 0:01:15.1]} 26. e4 {[%clk 0:00:25.7]} 26...
Nxe4 {[%clk 0:01:14.8]} 27. Nxe4 {[%clk 0:00:20.8]} 27... Qxe4 {[%clk 0:01:15]}
28. Qxe4 {[%clk 0:00:19.3]} 28... Bxe4 {[%clk 0:01:15.9]} 29. Bg4 {[%clk
0:00:16.1]} 29... Rd2 {[%clk 0:01:05.4]} 30. f3 {[%clk 0:00:10.5]} 30... Bd3
{[%clk 0:01:02]} 31. Rd6 {[%clk 0:00:10.2]} 31... Rd1+ {[%clk 0:00:45.7]} 32.
Kf2 {[%clk 0:00:10.1]} 32... Rf1+ {[%clk 0:00:46.6]} 33. Ke3 {[%clk 0:00:10.3]}
33... Bc4 {[%clk 0:00:46.3]} 34. Bd7 {[%clk 0:00:10.1]} 34... g6 {[%clk
0:00:38.9]} 35. Rd2 {[%clk 0:00:07.8]} 35... f5 {[%clk 0:00:37.2]} 36. g3 {[%clk
0:00:07.8]} 36... Kf7 {[%clk 0:00:36.2]} 37. Bc6 {[%clk 0:00:07.6]} 37... Ke6
{[%clk 0:00:36]} 38. a4 {[%clk 0:00:08.1]} 38... f4+ {[%clk 0:00:33.9]} 39. gxf4
{[%clk 0:00:08]} 39... gxf4+ {[%clk 0:00:33.7]} 40. Ke4 {[%clk 0:00:08.1]} 40...
Re1+ {[%clk 0:00:33.9]} 0-1

[Event "*** Titled Tuesday Blitz"]
[Site "Chess.com"]
[Date "2020.10.20"]
[Round "5"]
[White "brunomorado"]
[Black "Boundless_Strike"]
[Result "0-1"]
[WhiteElo "2317"]
[BlackElo "2506"]
[TimeControl "180+1"]
[EndTime "10:57:00 PDT"]
[Termination "Boundless_Strike won on time"]

1. d4 {[%clk 0:03:00.3]} 1... Nf6 {[%clk 0:02:55.6]} 2. Nc3 {[%clk 0:02:59.9]}
2... g6 {[%clk 0:02:54.1]} 3. e4 {[%clk 0:02:59.6]} 3... Bg7 {[%clk 0:02:54.6]}
4. e5 {[%clk 0:02:59.8]} 4... Ng8 {[%clk 0:02:54.8]} 5. Bc4 {[%clk 0:03:00.1]}
5... e6 {[%clk 0:02:53.2]} 6. Qf3 {[%clk 0:02:54.5]} 6... Ne7 {[%clk 0:02:53.2]}
7. Ne4 {[%clk 0:02:51.5]} 7... d5 {[%clk 0:02:49.1]} 8. Bb5+ {[%clk 0:02:50.7]}
8... Bd7 {[%clk 0:02:48]} 9. Nf6+ {[%clk 0:02:21.2]} 9... Bxf6 {[%clk
0:02:46.8]} 10. Qxf6 {[%clk 0:02:22.1]} 10... Rg8 {[%clk 0:02:46.6]} 11. Bd3
{[%clk 0:02:21.2]} 11... Nf5 {[%clk 0:02:44.4]} 12. Qxd8+ {[%clk 0:02:19.7]}
12... Kxd8 {[%clk 0:02:45.3]} 13. Nf3 {[%clk 0:02:20]} 13... h5 {[%clk
0:02:19.1]} 14. Bg5+ {[%clk 0:02:02.6]} 14... Ke8 {[%clk 0:02:17.1]} 15. h3
{[%clk 0:01:52.1]} 15... b6 {[%clk 0:02:11.2]} 16. g4 {[%clk 0:01:50.6]} 16...
Ng7 {[%clk 0:02:11.3]} 17. O-O-O {[%clk 0:01:39.1]} 17... c5 {[%clk 0:02:11.1]}
18. c3 {[%clk 0:01:36.4]} 18... Nc6 {[%clk 0:02:11.1]} 19. Bb5 {[%clk
0:01:22.3]} 19... a6 {[%clk 0:02:07.9]} 20. Ba4 {[%clk 0:01:19.3]} 20... Nxe5
{[%clk 0:02:03.9]} 21. Nxe5 {[%clk 0:01:02.9]} 21... Bxa4 {[%clk 0:02:03.8]} 22.
Rdf1 {[%clk 0:01:00]} 22... cxd4 {[%clk 0:01:57]} 23. b3 {[%clk 0:00:59.9]}
23... Bb5 {[%clk 0:01:54.4]} 24. cxd4 {[%clk 0:00:46.7]} 24... Rc8+ {[%clk
0:01:53.6]} 25. Kd2 {[%clk 0:00:46.4]} 25... Bxf1 {[%clk 0:01:54.3]} 26. Rxf1
{[%clk 0:00:46.9]} 26... Rc7 {[%clk 0:01:38.9]} 27. Bf6 {[%clk 0:00:43.7]} 27...
Kf8 {[%clk 0:01:25.4]} 28. Bd8 {[%clk 0:00:42.9]} 28... Rb7 {[%clk 0:01:25.5]}
29. Bxb6 {[%clk 0:00:40.9]} 29... Ne8 {[%clk 0:01:22.9]} 30. Bd8 {[%clk
0:00:17.2]} 30... f6 {[%clk 0:01:21.6]} 31. Nd3 {[%clk 0:00:17.1]} 31... Kf7
{[%clk 0:01:19.8]} 32. Nc5 {[%clk 0:00:07.5]} 32... Rb8 {[%clk 0:01:19.9]} 33.
Ba5 {[%clk 0:00:06.5]} 33... Nd6 {[%clk 0:01:20.4]} 34. Bc7 {[%clk 0:00:03]}
34... Nb5 {[%clk 0:01:10]} 35. Bxb8 {[%clk 0:00:03.2]} 35... Rxb8 {[%clk
0:01:10.9]} 36. Kd3 {[%clk 0:00:03.7]} 36... e5 {[%clk 0:01:11.2]} 37. dxe5
{[%clk 0:00:03.9]} 37... fxe5 {[%clk 0:01:12.1]} 38. Nd7 {[%clk 0:00:04.1]}
38... e4+ {[%clk 0:01:09.2]} 39. Kd2 {[%clk 0:00:03.5]} 39... Rd8 {[%clk
0:01:06.4]} 40. Ne5+ {[%clk 0:00:03.9]} 40... Kf6 {[%clk 0:01:05.5]} 41. f4
{[%clk 0:00:04.8]} 41... hxg4 {[%clk 0:01:04.6]} 42. hxg4 {[%clk 0:00:05.1]}
42... Rc8 {[%clk 0:01:01.8]} 43. Rh1 {[%clk 0:00:05]} 43... d4 {[%clk
0:01:01.4]} 44. Rh7 {[%clk 0:00:05.4]} 44... e3+ {[%clk 0:01:01.8]} 45. Kd3
{[%clk 0:00:03.3]} 45... Rc3+ {[%clk 0:00:59.9]} 0-1

[Event "*** Titled Tuesday Blitz"]
[Site "Chess.com"]
[Date "2020.10.20"]
[Round "5"]
[White "Makswolf200817"]
[Black "PavelShkapenko"]
[Result "0-1"]
[WhiteElo "2450"]
[BlackElo "2708"]
[TimeControl "180+1"]
[EndTime "10:57:01 PDT"]
[Termination "PavelShkapenko won by resignation"]

1. d4 {[%clk 0:03:00.9]} 1... Nf6 {[%clk 0:02:59.2]} 2. c4 {[%clk 0:03:00.3]}
2... e6 {[%clk 0:02:59.5]} 3. g3 {[%clk 0:02:58.5]} 3... Bb4+ {[%clk 0:02:59.4]}
4. Bd2 {[%clk 0:02:57.9]} 4... Qe7 {[%clk 0:02:59.5]} 5. Nf3 {[%clk 0:02:57.3]}
5... Nc6 {[%clk 0:02:59.4]} 6. Bg2 {[%clk 0:02:57.2]} 6... Bxd2+ {[%clk
0:02:59.3]} 7. Nbxd2 {[%clk 0:02:56.6]} 7... d6 {[%clk 0:02:59]} 8. O-O {[%clk
0:02:55.9]} 8... a5 {[%clk 0:02:58.6]} 9. e4 {[%clk 0:02:49.6]} 9... e5 {[%clk
0:02:58.5]} 10. d5 {[%clk 0:02:49.9]} 10... Nb8 {[%clk 0:02:59]} 11. Nh4 {[%clk
0:02:43.6]} 11... O-O {[%clk 0:02:41.4]} 12. Qe2 {[%clk 0:02:17.3]} 12... Na6
{[%clk 0:02:35.5]} 13. Nf5 {[%clk 0:02:04.6]} 13... Bxf5 {[%clk 0:02:34.7]} 14.
exf5 {[%clk 0:02:05.5]} 14... Rfe8 {[%clk 0:02:25.2]} 15. g4 {[%clk 0:02:01.1]}
15... h6 {[%clk 0:02:20.5]} 16. Rae1 {[%clk 0:01:59.5]} 16... Nc5 {[%clk
0:02:16.4]} 17. f4 {[%clk 0:01:54.5]} 17... Nfd7 {[%clk 0:02:16.5]} 18. b3
{[%clk 0:01:41.7]} 18... Qf6 {[%clk 0:02:04.7]} 19. Ne4 {[%clk 0:01:32]} 19...
Nxe4 {[%clk 0:02:04.1]} 20. Qxe4 {[%clk 0:01:32.9]} 20... exf4 {[%clk
0:01:46.5]} 21. Qxf4 {[%clk 0:01:26.4]} 21... Nc5 {[%clk 0:01:46.4]} 22. Qg3
{[%clk 0:01:22]} 22... Qd4+ {[%clk 0:01:20.8]} 23. Kh1 {[%clk 0:01:17.8]} 23...
Nd3 {[%clk 0:01:17.2]} 24. Rxe8+ {[%clk 0:01:11.2]} 24... Rxe8 {[%clk 0:01:17]}
25. f6 {[%clk 0:01:12.1]} 25... g5 {[%clk 0:01:12.9]} 26. h4 {[%clk 0:01:06.7]}
26... Nf4 {[%clk 0:00:57.4]} 27. Re1 {[%clk 0:00:44.6]} 27... Rxe1+ {[%clk
0:00:44.5]} 28. Qxe1 {[%clk 0:00:45.5]} 28... Qxf6 {[%clk 0:00:44.9]} 29. Qe8+
{[%clk 0:00:43.8]} 29... Kg7 {[%clk 0:00:45.1]} 30. h5 {[%clk 0:00:42.6]} 30...
Qb2 {[%clk 0:00:40.6]} 31. Bf3 {[%clk 0:00:41.2]} 31... Qa1+ {[%clk 0:00:31.9]}
32. Kh2 {[%clk 0:00:40.4]} 32... Qxa2+ {[%clk 0:00:31.9]} 33. Kg3 {[%clk
0:00:40.7]} 33... Qa1 {[%clk 0:00:28.6]} 34. Qe3 {[%clk 0:00:37.3]} 34... Kf6
{[%clk 0:00:24.4]} 35. c5 {[%clk 0:00:25.6]} 35... Qe5 {[%clk 0:00:22.9]} 36.
Qxe5+ {[%clk 0:00:20.6]} 36... Kxe5 {[%clk 0:00:22.5]} 37. c6 {[%clk 0:00:17]}
37... b5 {[%clk 0:00:22.3]} 0-1

[Event "*** Titled Tuesday Blitz"]
[Site "Chess.com"]
[Date "2020.10.20"]
[Round "5"]
[White "infinitegiantkiller"]
[Black "Artyom_ChessMate"]
[Result "1-0"]
[WhiteElo "2362"]
[BlackElo "2500"]
[TimeControl "180+1"]
[EndTime "10:57:02 PDT"]
[Termination "infinitegiantkiller won by checkmate"]

1. d4 {[%clk 0:03:00.9]} 1... d5 {[%clk 0:02:21.3]} 2. c4 {[%clk 0:03:01.8]}
2... e6 {[%clk 0:02:19.8]} 3. Nc3 {[%clk 0:02:56.5]} 3... Nf6 {[%clk 0:02:16.4]}
4. Nf3 {[%clk 0:02:57]} 4... c5 {[%clk 0:02:16.4]} 5. e3 {[%clk 0:02:57.5]} 5...
Nc6 {[%clk 0:02:16]} 6. a3 {[%clk 0:02:57.4]} 6... Ne4 {[%clk 0:02:07.3]} 7.
cxd5 {[%clk 0:02:42.4]} 7... exd5 {[%clk 0:01:58.4]} 8. Bd3 {[%clk 0:02:35.1]}
8... Nxc3 {[%clk 0:01:53.2]} 9. bxc3 {[%clk 0:02:36]} 9... Be7 {[%clk
0:01:51.6]} 10. O-O {[%clk 0:02:15.4]} 10... O-O {[%clk 0:01:49.6]} 11. Qc2
{[%clk 0:02:10]} 11... g6 {[%clk 0:01:42.7]} 12. Ne5 {[%clk 0:02:07.8]} 12...
Nxe5 {[%clk 0:01:34.5]} 13. dxe5 {[%clk 0:02:08.7]} 13... c4 {[%clk 0:01:34.7]}
14. Be2 {[%clk 0:02:07.5]} 14... Bf5 {[%clk 0:01:35]} 15. Qb2 {[%clk 0:02:06.1]}
15... a6 {[%clk 0:01:29.9]} 16. f4 {[%clk 0:01:54.8]} 16... b5 {[%clk
0:01:29.5]} 17. Bf3 {[%clk 0:01:55]} 17... Be4 {[%clk 0:01:20.7]} 18. Qf2 {[%clk
0:01:54.1]} 18... Qb6 {[%clk 0:01:16.4]} 19. Rd1 {[%clk 0:01:42.3]} 19... Bc5
{[%clk 0:01:12.4]} 20. a4 {[%clk 0:01:41.8]} 20... b4 {[%clk 0:01:00]} 21. cxb4
{[%clk 0:01:40.4]} 21... Bxb4 {[%clk 0:01:00.9]} 22. Ba3 {[%clk 0:01:19.6]}
22... a5 {[%clk 0:00:52.3]} 23. Bxe4 {[%clk 0:01:15.9]} 23... dxe4 {[%clk
0:00:50.9]} 24. Qc2 {[%clk 0:01:16.4]} 24... Qc5 {[%clk 0:00:48]} 25. Bxb4
{[%clk 0:01:14.3]} 25... axb4 {[%clk 0:00:48.9]} 26. Rd4 {[%clk 0:01:14.1]}
26... Rfc8 {[%clk 0:00:43.3]} 27. Kf2 {[%clk 0:01:08.2]} 27... b3 {[%clk
0:00:30.3]} 28. Qxe4 {[%clk 0:01:07.8]} 28... b2 {[%clk 0:00:28.1]} 29. Rb1
{[%clk 0:01:08]} 29... Ra6 {[%clk 0:00:14.7]} 30. Rxb2 {[%clk 0:01:04.4]} 30...
c3 {[%clk 0:00:12]} 31. Rc2 {[%clk 0:01:04.3]} 31... Rb6 {[%clk 0:00:12.2]} 32.
Kf3 {[%clk 0:00:53.8]} 32... Rcc6 {[%clk 0:00:11.9]} 33. Rd5 {[%clk 0:00:47.7]}
33... Qa3 {[%clk 0:00:09.2]} 34. Rd8+ {[%clk 0:00:47.3]} 34... Kg7 {[%clk
0:00:09.1]} 35. Qd4 {[%clk 0:00:46.1]} 35... Rb4 {[%clk 0:00:07.8]} 36. Qd7
{[%clk 0:00:42.9]} 36... Rcb6 {[%clk 0:00:03.9]} 37. Qe7 {[%clk 0:00:35.1]}
37... Re6 {[%clk 0:00:02.9]} 38. Qf8# {[%clk 0:00:34.4]} 1-0

[Event "*** Titled Tuesday Blitz"]
[Site "Chess.com"]
[Date "2020.10.20"]
[Round "5"]
[White "stolencandy13"]
[Black "UmbertoConcelli"]
[Result "0-1"]
[WhiteElo "2469"]
[BlackElo "2713"]
[TimeControl "180+1"]
[EndTime "10:57:05 PDT"]
[Termination "UmbertoConcelli won by resignation"]

1. e4 {[%clk 0:03:00.9]} 1... c5 {[%clk 0:02:57.9]} 2. Nf3 {[%clk 0:02:59.6]}
2... d6 {[%clk 0:02:53.1]} 3. d4 {[%clk 0:03:00.1]} 3... cxd4 {[%clk 0:02:54]}
4. Nxd4 {[%clk 0:03:00.7]} 4... Nf6 {[%clk 0:02:54.6]} 5. Nc3 {[%clk 0:03:01.2]}
5... Nc6 {[%clk 0:02:55.1]} 6. Bg5 {[%clk 0:02:58.8]} 6... e6 {[%clk 0:02:54.5]}
7. Qd2 {[%clk 0:02:58.7]} 7... a6 {[%clk 0:02:54.6]} 8. O-O-O {[%clk 0:02:58.3]}
8... Bd7 {[%clk 0:02:54.8]} 9. f3 {[%clk 0:02:56.4]} 9... Nxd4 {[%clk
0:02:53.7]} 10. Qxd4 {[%clk 0:02:55.8]} 10... Be7 {[%clk 0:02:54.6]} 11. h4
{[%clk 0:02:54.4]} 11... Qc7 {[%clk 0:02:52]} 12. g4 {[%clk 0:02:51.9]} 12... h5
{[%clk 0:02:43.9]} 13. Be2 {[%clk 0:02:45.3]} 13... b5 {[%clk 0:02:39.2]} 14.
gxh5 {[%clk 0:02:22.4]} 14... Rc8 {[%clk 0:02:31.6]} 15. a3 {[%clk 0:02:13.1]}
15... Nxh5 {[%clk 0:02:25.1]} 16. Bxe7 {[%clk 0:02:10.9]} 16... Kxe7 {[%clk
0:02:26]} 17. Rhg1 {[%clk 0:01:56.1]} 17... Qc5 {[%clk 0:02:25]} 18. Qd2 {[%clk
0:01:35.6]} 18... Qe5 {[%clk 0:02:24.7]} 19. Rg5 {[%clk 0:01:30.5]} 19... Qf4
{[%clk 0:02:24.2]} 20. Qxf4 {[%clk 0:01:24.8]} 20... Nxf4 {[%clk 0:02:25.1]} 21.
Rxg7 {[%clk 0:01:23.3]} 21... Rxc3 {[%clk 0:02:24.4]} 22. bxc3 {[%clk
0:01:20.7]} 22... Nxe2+ {[%clk 0:02:24.4]} 23. Kd2 {[%clk 0:01:21.2]} 23... Nf4
{[%clk 0:02:25.3]} 24. Rh1 {[%clk 0:01:18.9]} 24... e5 {[%clk 0:02:20.1]} 25.
Rgg1 {[%clk 0:01:06.8]} 25... Bh3 {[%clk 0:02:19.2]} 26. a4 {[%clk 0:01:02.9]}
26... Rxh4 {[%clk 0:02:16.5]} 27. axb5 {[%clk 0:01:00.8]} 27... axb5 {[%clk
0:02:17.4]} 28. Rb1 {[%clk 0:01:00.7]} 28... Rh6 {[%clk 0:02:16]} 29. Rxb5
{[%clk 0:00:59.3]} 29... Rg6 {[%clk 0:02:16.2]} 30. Rh2 {[%clk 0:00:55.7]} 30...
Rg1 {[%clk 0:02:13.9]} 31. c4 {[%clk 0:00:52.2]} 31... Rf1 {[%clk 0:01:58.8]}
32. Ke3 {[%clk 0:00:44.4]} 32... Re1+ {[%clk 0:01:56.8]} 33. Kd2 {[%clk
0:00:43.9]} 33... Rf1 {[%clk 0:01:55.2]} 34. Ke3 {[%clk 0:00:44.2]} 34... Bg2
{[%clk 0:01:49.8]} 35. c5 {[%clk 0:00:40.9]} 35... Rxf3+ {[%clk 0:01:47.5]} 36.
Kd2 {[%clk 0:00:36.7]} 36... Rf2+ {[%clk 0:01:47.5]} 37. Kc1 {[%clk 0:00:34.7]}
37... Rf1+ {[%clk 0:01:44.6]} 38. Kb2 {[%clk 0:00:34]} 38... Bxe4 {[%clk
0:01:43.8]} 39. cxd6+ {[%clk 0:00:33]} 39... Kxd6 {[%clk 0:01:43.6]} 40. Rd2+
{[%clk 0:00:32.4]} 40... Ke6 {[%clk 0:01:41.9]} 41. Rb6+ {[%clk 0:00:31.4]}
41... Kf5 {[%clk 0:01:41]} 42. Rd7 {[%clk 0:00:31.9]} 42... Bd5 {[%clk
0:01:36.2]} 43. Rb4 {[%clk 0:00:30.4]} 43... Be6 {[%clk 0:01:35]} 44. Rd8 {[%clk
0:00:29.1]} 44... e4 {[%clk 0:01:32.5]} 45. Rb5+ {[%clk 0:00:24]} 45... Kf6
{[%clk 0:01:31.8]} 46. Rd4 {[%clk 0:00:23.3]} 46... e3 {[%clk 0:01:30.7]} 47.
Re4 {[%clk 0:00:23.4]} 47... e2 {[%clk 0:01:27.7]} 48. Rbe5 {[%clk 0:00:23.1]}
48... Bf5 {[%clk 0:01:24.6]} 49. Re3 {[%clk 0:00:20.2]} 49... Rf2 {[%clk
0:01:22]} 50. Kb3 {[%clk 0:00:18.9]} 50... Bxc2+ {[%clk 0:01:19.2]} 51. Kc3
{[%clk 0:00:16.2]} 51... Bf5 {[%clk 0:01:10.1]} 52. Kd2 {[%clk 0:00:16.5]} 52...
Rf1 {[%clk 0:01:06.4]} 53. Re8 {[%clk 0:00:12.8]} 53... Be6 {[%clk 0:01:04.6]}
54. Ra8 {[%clk 0:00:10.3]} 54... Rd1+ {[%clk 0:01:03.5]} 0-1